bitfinex-derivatives/quotes_SOLF0:USTF0_20250211
["timestamp","ask_amount","ask_price","bid_price","bid_amount"]
[1739297411443,13.88413027,197.45,197.42,0.03730888]
[1739297411635,5.0648,197.43,197.42,0.03730888]
[1739297412642,13.85855701,197.44,197.42,0.03730888]
[1739297413837,13.85855701,197.44,197.31,193.0]
[1739297414043,13.85855701,197.41,197.34,5.0671]
[1739297414340,18.92415701,197.41,197.34,5.0671]
[1739297414637,13.85855701,197.41,197.35,5.0669]
[1739297414841,18.92395701,197.41,197.29,23.93815701]
[1739297415039,0.03214071,197.4,197.36,0.03855887]
[1739297415841,0.03214071,197.4,197.37,5.0663]
[1739297417443,0.03214071,197.4,197.38,5.066]
[1739297418040,0.03214071,197.4,197.36,0.03855887]
[1739297418339,0.03214071,197.4,197.39,5.0658]
[1739297421047,4.071e-05,197.4,197.39,5.0658]
[1739297421244,13.85855701,197.53,197.38,13.85855701]
[1739297421442,5.0628,197.51,197.41,13.85855701]
[1739297421741,13.85855701,197.53,197.41,13.85855701]
[1739297421948,5.0626,197.52,197.46,5.0638]
[1739297422246,5.0626,197.52,197.41,13.85855701]
[1739297422451,0.03297122,197.51,197.47,0.03787188]
[1739297422648,0.03297122,197.51,197.47,5.10147188]
[1739297423546,0.03297122,197.51,197.48,5.0634]
[1739297428449,0.03297122,197.51,197.47,0.03787188]
[1739297428652,0.03297122,197.51,197.5,5.063]
[1739297429352,7.122e-05,197.51,197.5,5.063]
[1739297434165,7.122e-05,197.51,197.47,0.03787188]
[1739297435664,13.85855701,197.5,197.47,0.03787188]
[1739297436561,16.95735701,197.5,197.47,0.03787188]
[1739297436965,16.95735701,197.5,197.35,13.85855701]
[1739297437159,2.9425,197.49,197.35,13.85855701]
[1739297437357,2.9425,197.49,197.36,10.0625]
[1739297437661,8.0059,197.49,197.43,5.0647]
[1739297437863,8.0059,197.49,197.36,10.0625]
[1739297438260,13.85855701,197.61,197.46,13.85855701]
[1739297438464,13.85855701,197.61,197.49,13.85855701]
[1739297438957,2.9458,197.62,197.49,13.85855701]
[1739297439362,0.03391663,197.57,197.56,5.0615]
[1739297439554,2.9458,197.62,197.56,5.0615]
[1739297439758,0.0376236,197.58,197.56,5.0615]
[1739297440258,0.0376236,197.58,197.57,5.0612]
[1739297441366,3.0481,197.68,197.63,5.0596]
[1739297441564,3.0481,197.68,197.58,13.85855701]
[1739297441764,3.0481,197.68,197.62,5.0599]
[1739297442168,13.85855701,197.67,197.56,3.7932]
[1739297442365,18.91795701,197.64,197.63,0.03617138]
[1739297442668,13.85855701,197.64,197.56,3.7932]
[1739297443061,13.85855701,197.64,197.49,13.85855701]
[1739297443262,13.85855701,197.61,197.49,13.85855701]
[1739297443461,13.85855701,197.61,197.53,5.062]
[1739297443765,13.85855701,197.61,197.53,0.03488113]
[1739297443766,0.03255085,197.57,197.53,0.03488113]
[1739297444866,0.03255085,197.57,197.53,5.09698113]
[1739297445256,0.03255085,197.57,197.55,5.0617]
[1739297445461,13.85855701,197.67,197.55,13.85855701]
[1739297445868,5.0589,197.66,197.58,5.0607]
[1739297446366,13.85855701,197.67,197.58,5.0607]
[1739297446668,13.85855701,197.67,197.61,0.03552257]
[1739297446669,0.03652831,197.64,197.61,0.03552257]
[1739297448061,0.03652831,197.64,197.61,13.89407958]
[1739297448265,0.03652831,197.64,197.63,5.0597]
[1739297448767,5.0574,197.72,197.61,13.89407958]
[1739297448966,5.0574,197.72,197.66,5.0589]
[1739297449165,13.85855701,197.73,197.61,13.85855701]
[1739297450064,0.03221824,197.69,197.65,0.036794]
[1739297450670,5.0585,197.68,197.65,0.036794]
[1739297450873,0.03221824,197.69,197.65,0.036794]
[1739297451365,5.0586,197.68,197.65,0.036794]
[1739297451764,5.0587,197.67,197.65,0.036794]
[1739297452165,0.03221824,197.69,197.65,0.036794]
[1739297454669,5.0586,197.68,197.65,0.036794]
[1739297454875,0.03221824,197.69,197.65,0.036794]
[1739297455370,5.0585,197.68,197.65,0.036794]
[1739297455675,0.03221824,197.69,197.65,0.036794]
[1739297455874,5.0587,197.67,197.65,0.036794]
[1739297456275,0.03221824,197.69,197.65,0.036794]
[1739297456477,5.0589,197.67,197.65,0.036794]
[1739297457771,0.03221824,197.69,197.65,0.036794]
[1739297458076,0.03221824,197.69,197.67,5.0585]
[1739297458971,0.03221824,197.69,197.65,0.036794]
[1739297458972,0.03221824,197.69,197.66,5.0589]
[1739297459275,5.0587,197.67,197.65,0.036794]
[1739297460276,0.03221824,197.69,197.65,0.036794]
[1739297460677,5.0585,197.68,197.65,0.036794]
[1739297460879,22.1171607,197.68,197.65,0.036794]
[1739297461080,25.0311607,197.68,197.65,0.036794]
[1739297461376,25.0311607,197.68,197.57,3.8932]
[1739297461880,5.0596,197.64,197.58,5.061]
[1739297462077,25.0311607,197.68,197.57,3.8932]
[1739297462377,5.0605,197.6,197.48,193.0]
[1739297462573,0.03409646,197.64,197.61,0.03740576]
[1739297462781,22.1171607,197.62,197.49,10.4036]
[1739297462980,5.0615,197.56,197.49,15.4668]
[1739297463476,5.0615,197.56,197.5,5.0629]
[1739297463874,0.03620823,197.55,197.51,0.03720661]
[1739297464381,0.03620823,197.55,197.47,28.04491054]
[1739297464874,5.0621,197.54,197.47,5.0636]
[1739297465073,0.03620823,197.55,197.42,10.2961]
[1739297465274,2.9958,197.58,197.43,5.0646]
[1739297465681,0.03892764,197.5,197.47,0.03361606]
[1739297465979,2.9958,197.58,197.47,0.03361606]
[1739297466179,0.03643425,197.5,197.47,0.03361606]
[1739297466381,2.9958,197.58,197.47,0.03361606]
[1739297466579,0.0319441,197.5,197.47,0.03361606]
[1739297466875,5.0621,197.54,197.47,0.03361606]
[1739297467178,0.03899762,197.5,197.47,0.03361606]
[1739297467478,5.0623,197.53,197.47,0.03361606]
[1739297467780,0.0386437,197.5,197.47,5.09731606]
[1739297467979,2.9958,197.58,197.47,0.03361606]
[1739297468385,5.0615,197.56,197.47,0.03361606]
[1739297468988,2.9958,197.58,197.47,0.03361606]
[1739297469183,0.03380776,197.53,197.47,0.03361606]
[1739297469576,0.03380776,197.53,197.48,5.0633]
[1739297469777,0.03380776,197.53,197.47,0.03361606]
[1739297470684,22.15096846,197.53,197.47,0.03361606]
[1739297471584,5.0635,197.48,197.47,0.03361606]
[1739297472583,5.0649,197.43,197.37,5.0663]
[1739297472784,22.1171607,197.47,197.36,3.9632]
[1739297473386,22.1171607,197.5,197.36,3.9632]
[1739297473783,0.03223384,197.45,197.41,0.0349001]
[1739297474289,5.0651,197.42,197.41,0.0349001]
[1739297474484,22.1171607,197.44,197.33,5.0673]
[1739297474988,22.1171607,197.41,197.28,6.9259]
[1739297475188,22.1171607,197.41,197.28,3.7935]
[1739297475384,5.0665,197.37,197.3,5.0679]
[1739297475585,0.03316335,197.36,197.33,0.03432606]
[1739297476184,0.03316335,197.36,197.33,5.10162606]
[1739297476387,0.03316335,197.36,197.33,0.03432606]
[1739297476584,0.03316335,197.36,197.35,5.0669]
[1739297477280,0.03316335,197.36,197.33,0.03432606]
[1739297478487,5.09996335,197.36,197.33,0.03432606]
[1739297478785,0.03316335,197.36,197.33,0.03432606]
[1739297479794,5.0646,197.44,197.33,0.03432606]
[1739297479987,5.0646,197.44,197.33,3.06822606]
[1739297480186,5.0646,197.44,197.38,5.066]
[1739297480489,5.0641,197.46,197.34,2.9565]
[1739297480690,2.9797,197.49,197.4,5.0655]
[1739297480890,2.9797,197.49,197.38,0.03578012]
[1739297480891,0.03471181,197.42,197.38,0.03578012]
[1739297481385,2.9797,197.49,197.42,5.065]
[1739297481890,0.03294001,197.47,197.44,0.03626461]
[1739297482283,0.03294001,197.47,197.44,0.03624606]
[1739297483288,22.15010071,197.47,197.44,0.03624606]
[1739297483692,5.0643,197.45,197.44,0.03624606]
[1739297484087,22.15010071,197.47,197.34,2.9565]
[1739297484293,5.0658,197.39,197.28,3.7935]
[1739297484689,22.1171607,197.44,197.28,3.7935]
[1739297485290,0.03675628,197.38,197.34,0.0355474]
[1739297486092,5.10305628,197.38,197.34,0.0355474]
[1739297486289,0.03675628,197.38,197.34,0.0355474]
[1739297488292,0.03675628,197.38,197.37,5.0663]
[1739297488695,22.1171607,197.5,197.34,22.1527081]
[1739297488898,5.0639,197.47,197.4,5.0655]
[1739297489299,22.1171607,197.47,197.35,2.917]
[1739297489501,5.0651,197.42,197.35,7.9836]
[1739297489794,22.1171607,197.47,197.35,2.917]
[1739297490003,0.03350753,197.4,197.37,0.03322092]
[1739297490396,22.1171607,197.44,197.32,2.9694]
[1739297490697,0.03437102,197.4,197.37,0.03364246]
[1739297492401,5.09997102,197.4,197.37,0.03364246]
[1739297493098,0.03437102,197.4,197.37,0.03364246]
[1739297493698,22.1171607,197.38,197.28,3.7935]
[1739297493995,22.1171607,197.38,197.15,489.01122763]
[1739297493996,22.1171607,197.35,197.23,3.0555]
[1739297494197,5.0678,197.32,197.23,3.0555]
[1739297494402,22.1171607,197.35,197.23,3.0555]
[1739297494701,22.1171607,197.38,197.23,3.0555]
[1739297494903,0.03861889,197.31,197.27,0.03477969]
[1739297496703,5.10651889,197.31,197.27,0.03477969]
[1739297496904,0.03861889,197.31,197.27,0.03477969]
[1739297497301,22.1171607,197.29,197.27,0.03477969]
[1739297497509,22.1171607,197.29,197.14,2.9426]
[1739297497807,27.1863607,197.26,197.14,2.9426]
[1739297497997,22.1171607,197.26,197.14,2.9426]
[1739297498300,22.1171607,197.26,197.18,5.0712]
[1739297498501,22.1171607,197.29,197.14,2.9426]
[1739297498706,0.0386644,197.24,197.2,0.03266459]
[1739297499206,6.0028,197.37,197.2,0.03266459]
[1739297499408,6.0028,197.37,197.19,22.1171607]
[1739297499707,11.0694,197.37,197.26,5.0691]
[1739297500310,0.03424598,197.33,197.3,0.03603006]
[1739297500605,6.0028,197.37,197.23,4.0907]
[1739297500801,0.03639943,197.33,197.3,0.03499656]
[1739297501002,0.03639943,197.33,197.3,5.10299656]
[1739297501206,0.03639943,197.33,197.3,0.03499656]
[1739297501608,0.03639943,197.33,197.31,5.0678]
[1739297501800,0.03639943,197.33,197.3,0.03499656]
[1739297502405,0.03639943,197.33,197.3,5.10309656]
[1739297503409,0.03639943,197.33,197.31,5.0678]
[1739297504207,0.03639943,197.33,197.31,8.0291]
[1739297504511,0.03639943,197.33,197.32,5.0676]
[1739297505408,22.1171607,197.44,197.31,2.9613]
[1739297505610,28.3991607,197.47,197.31,25.0784607]
[1739297506004,28.3991607,197.47,197.4,5.0655]
[1739297506413,28.3991607,197.47,197.31,25.0784607]
[1739297506714,0.03562205,197.45,197.42,0.03758462]
[1739297506906,3.0791,197.47,197.35,4.0278]
[1739297507208,0.0323263,197.45,197.42,0.03250914]
[1739297509112,0.0323263,197.45,197.43,5.0647]
[1739297510114,0.0323263,197.45,197.44,5.0645]
[1739297511617,3.83,197.58,197.42,0.03250914]
[1739297511816,3.83,197.58,197.48,5.0633]
[1739297512120,5.0617,197.56,197.48,5.0633]
[1739297512316,3.83,197.58,197.45,5.0642]
[1739297512508,3.83,197.58,197.4,22.1171607]
[1739297512708,5.0621,197.54,197.4,215.1171607]
[1739297512914,0.03200452,197.51,197.47,0.03400216]
[1739297514717,5.0631,197.5,197.47,0.03400216]
[1739297515228,5.09480452,197.51,197.47,0.03400216]
[1739297515419,0.03200452,197.51,197.47,0.03400216]
[1739297515814,0.03200452,197.51,197.49,5.0633]
[1739297516216,0.03200452,197.51,197.47,0.03400216]
[1739297516421,0.03200452,197.51,197.5,5.063]
[1739297517322,3.2097,197.59,197.53,5.0621]
[1739297517523,22.1171607,197.62,197.48,4.1827]
[1739297517723,5.0601,197.62,197.49,22.1171607]
[1739297518022,28.1686607,197.65,197.49,22.1171607]
[1739297518225,28.1686607,197.65,197.48,4.1827]
[1739297518418,28.1686607,197.65,197.55,0.03694879]
[1739297518419,0.03607276,197.59,197.55,0.03694879]
[1739297519020,5.09707276,197.59,197.55,0.03694879]
[1739297520835,0.03607276,197.59,197.55,0.03694879]
[1739297523028,0.03607276,197.59,197.58,5.061]
[1739297523735,5.0588,197.67,197.61,5.0601]
[1739297524230,22.1171607,197.71,197.56,3.1561]
[1739297524828,5.0584,197.68,197.56,3.1561]
[1739297525033,0.03860641,197.65,197.62,0.03627343]
[1739297525930,5.09780641,197.65,197.62,0.03627343]
[1739297526632,0.03860641,197.65,197.62,0.03627343]
[1739297527530,5.09780641,197.65,197.62,0.03627343]
[1739297528736,0.03860641,197.65,197.62,0.03627343]
[1739297529334,5.0596,197.64,197.62,0.03627343]
[1739297531137,5.0597,197.63,197.62,0.03627343]
[1739297532635,0.03860641,197.65,197.62,0.03627343]
[1739297533037,5.0596,197.64,197.62,0.03627343]
[1739297533236,0.03860641,197.65,197.62,0.03627343]
[1739297533536,5.0594,197.64,197.62,0.03627343]
[1739297534139,0.03860641,197.65,197.62,0.03627343]
[1739297537739,5.0594,197.64,197.62,0.03627343]
[1739297537941,0.03860641,197.65,197.62,0.03627343]
[1739297538541,5.0595,197.64,197.62,0.03627343]
[1739297538941,5.09780641,197.65,197.62,0.03627343]
[1739297539545,5.09800641,197.65,197.62,0.03627343]
[1739297540240,5.0596,197.64,197.62,0.03627343]
[1739297542443,5.0597,197.63,197.62,0.03627343]
[1739297542643,0.03860641,197.65,197.62,0.03627343]
[1739297543648,0.03860641,197.65,197.62,5.09617343]
[1739297544340,0.03860641,197.65,197.62,0.03627343]
[1739297545149,0.03860641,197.65,197.63,5.0597]
[1739297545340,0.03860641,197.65,197.62,0.03627343]
[1739297545743,5.09790641,197.65,197.62,0.03627343]
[1739297546348,0.03860641,197.65,197.62,0.03627343]
[1739297546551,5.0597,197.63,197.62,0.03627343]
[1739297547741,0.03860641,197.65,197.62,0.03627343]
[1739297548340,5.09800641,197.65,197.62,0.03627343]
[1739297548749,0.03860641,197.65,197.62,0.03627343]
[1739297549646,13.8263473,197.64,197.62,0.03627343]
[1739297549949,5.0597,197.63,197.62,0.03627343]
[1739297553246,13.8263473,197.64,197.53,196.0888]
[1739297553453,5.0607,197.59,197.53,3.0888]
[1739297553648,13.8263473,197.61,197.51,13.8263473]
[1739297553950,5.0608,197.59,197.52,5.0625]
[1739297554542,0.03397846,197.57,197.54,0.0374111]
[1739297555549,5.09517846,197.57,197.54,0.0374111]
[1739297555850,0.03397846,197.57,197.54,0.0374111]
[1739297558052,0.03397846,197.57,197.54,5.0993111]
[1739297558447,0.03397846,197.57,197.55,5.0617]
[1739297558945,13.8263473,197.67,197.54,13.8637584]
[1739297559145,13.8263473,197.67,197.54,13.8263473]
[1739297559355,5.0599,197.63,197.54,13.8263473]
[1739297560052,0.03569002,197.6,197.57,0.03619427]
[1739297561045,0.03569002,197.6,197.57,5.09729427]
[1739297561552,0.03569002,197.6,197.58,5.0609]
[1739297561752,0.03569002,197.6,197.57,0.03619427]
[1739297563750,0.03569002,197.6,197.58,5.061]
[1739297564352,0.03569002,197.6,197.59,5.0607]
[1739297566150,0.03569002,197.6,197.57,0.03619427]
[1739297566355,0.03569002,197.6,197.57,5.09719427]
[1739297566856,0.03569002,197.6,197.57,0.03619427]
[1739297567057,0.03569002,197.6,197.58,5.0608]
[1739297567758,0.03569002,197.6,197.57,0.03619427]
[1739297568151,5.061,197.58,197.57,0.03619427]
[1739297568850,0.03569002,197.6,197.57,0.03619427]
[1739297569056,5.0608,197.59,197.57,0.03619427]
[1739297569765,0.03569002,197.6,197.58,5.0608]
[1739297570362,0.03569002,197.6,197.57,5.09719427]
[1739297570663,0.03569002,197.6,197.57,0.03619427]
[1739297571265,0.03569002,197.6,197.59,5.0607]
[1739297575471,17.0047473,197.73,197.59,13.8263473]
[1739297575667,17.0047473,197.73,197.62,13.8263473]
[1739297576164,13.8263473,197.7,197.6,7.1413]
[1739297576565,0.03710171,197.67,197.63,0.03446533]
[1739297577369,0.03710171,197.67,197.65,5.0591]
[1739297577874,0.03710171,197.67,197.64,5.0593]
[1739297578774,0.03710171,197.67,197.63,0.03446533]
[1739297579173,5.0591,197.66,197.63,0.03446533]
[1739297579976,13.86344901,197.67,197.63,0.03446533]
[1739297580174,3.1203,197.66,197.63,0.03446533]
[1739297580477,13.8263473,197.64,197.52,34.92319809]
[1739297581178,5.0603,197.61,197.55,5.0617]
[1739297581476,13.8263473,197.64,197.52,34.92319809]
[1739297581776,0.03545771,197.6,197.56,13.86087298]
[1739297581975,0.03545771,197.6,197.59,13.8263473]
[1739297582381,0.03545771,197.6,197.59,18.8870473]
[1739297582877,0.03545771,197.6,197.59,5.0607]
[1739297583074,0.03545771,197.6,197.56,13.86087298]
[1739297583273,0.03545771,197.6,197.57,5.0612]
[1739297584782,0.03545771,197.6,197.58,5.0609]
[1739297584983,0.03545771,197.6,197.56,0.03452568]
[1739297585883,0.03545771,197.6,197.59,5.0607]
[1739297587083,13.8263473,197.71,197.59,13.8263473]
[1739297587382,8.1779,197.72,197.66,5.0588]
[1739297587581,3.1203,197.72,197.62,13.8263473]
[1739297587782,3.1203,197.72,197.69,5.0581]
[1739297588287,0.03764133,197.72,197.69,5.09518059]
[1739297588881,0.03764133,197.72,197.71,5.0576]
[1739297589087,0.03764133,197.72,197.69,0.03708059]
[1739297591384,13.8263473,197.71,197.69,0.03708059]
[1739297591584,5.0579,197.7,197.69,0.03708059]
[1739297591784,13.8263473,197.71,197.69,0.03708059]
[1739297592087,5.0579,197.7,197.69,0.03708059]
[1739297592389,13.8263473,197.71,197.59,13.8263473]
[1739297593185,13.8263473,197.68,197.56,193.0]
[1739297593385,13.8263473,197.68,197.63,0.03701286]
[1739297593386,0.03404352,197.67,197.63,0.03701286]
[1739297593687,13.8263473,197.65,197.63,0.03701286]
[1739297594186,5.0597,197.64,197.63,0.03701286]
[1739297595792,0.03404352,197.67,197.63,0.03701286]
[1739297596093,5.0589,197.66,197.63,0.03701286]
[1739297596292,0.03404352,197.67,197.63,0.03701286]
[1739297596488,5.0594,197.65,197.63,0.03701286]
[1739297597488,0.03404352,197.67,197.63,0.03701286]
[1739297598090,5.0591,197.66,197.63,0.03701286]
[1739297598485,0.03404352,197.67,197.63,0.03701286]
[1739297598688,5.09294352,197.67,197.63,0.03701286]
[1739297598986,0.03404352,197.67,197.63,0.03701286]
[1739297600391,0.03404352,197.67,197.64,5.0594]
[1739297600593,0.03404352,197.67,197.63,0.03701286]
[1739297601393,0.03404352,197.67,197.65,5.0591]
[1739297601693,0.03404352,197.67,197.63,0.03701286]
[1739297601893,0.03404352,197.67,197.65,5.0592]
[1739297602793,0.03404352,197.67,197.63,0.03701286]
[1739297603794,5.09274352,197.67,197.63,5.09671286]
[1739297604295,0.03404352,197.67,197.66,5.0589]
[1739297607395,0.03404352,197.67,197.65,5.0592]
[1739297607998,0.03404352,197.67,197.63,0.03701286]
[1739297608193,0.03404352,197.67,197.66,5.0589]
[1739297608899,3.0448,197.76,197.65,13.8263473]
[1739297609096,3.0448,197.76,197.69,5.0579]
[1739297609290,5.0569,197.74,197.69,5.0579]
[1739297609892,3.0448,197.76,197.62,13.8263473]
[1739297610096,0.0351846,197.73,197.7,0.03247866]
[1739297610597,5.0574,197.72,197.7,0.03247866]
[1739297610897,0.0351846,197.73,197.7,0.03247866]
[1739297611093,5.0576,197.72,197.7,0.03247866]
[1739297611702,5.0576,197.71,197.7,0.03247866]
[1739297614803,5.0586,197.68,197.6,203.2752]
[1739297615300,13.8263473,197.71,197.64,5.0594]
[1739297615900,0.03858683,197.69,197.66,0.03722677]
[1739297616301,5.09678683,197.69,197.66,0.03722677]
[1739297616502,0.03858683,197.69,197.66,0.03722677]
[1739297617701,5.0584,197.68,197.66,0.03722677]
[1739297617902,0.03858683,197.69,197.66,0.03722677]
[1739297619002,0.03858683,197.69,197.66,5.09592677]
[1739297619204,0.03858683,197.69,197.66,0.03722677]
[1739297619898,0.03858683,197.69,197.68,5.0584]
[1739297621500,0.03858683,197.69,197.66,0.03722677]
[1739297622798,0.03858683,197.69,197.67,5.0586]
[1739297623305,0.03858683,197.69,197.66,0.03722677]
[1739297624504,0.03858683,197.69,197.67,5.0587]
[1739297624705,0.03858683,197.69,197.66,0.03722677]
[1739297625409,0.03858683,197.69,197.68,5.0584]
[1739297626600,0.03858683,197.69,197.66,0.03722677]
[1739297627698,5.09678683,197.69,197.66,0.03722677]
[1739297627898,0.03858683,197.69,197.66,0.03722677]
[1739297628308,0.03858683,197.69,197.67,5.0584]
[1739297628705,0.03858683,197.69,197.66,0.03722677]
[1739297628907,0.03858683,197.69,197.67,5.0587]
[1739297629207,0.03858683,197.69,197.66,0.03722677]
[1739297629401,0.03858683,197.69,197.67,5.0587]
[1739297629801,0.03858683,197.69,197.66,0.03722677]
[1739297630406,5.0586,197.68,197.66,0.03722677]
[1739297631105,5.0587,197.67,197.66,0.03722677]
[1739297631706,5.0585,197.68,197.66,0.03722677]
[1739297632099,0.03858683,197.69,197.66,0.03722677]
[1739297632310,5.09678683,197.69,197.66,5.09612677]
[1739297633112,0.03858683,197.69,197.67,5.0586]
[1739297633910,0.03858683,197.69,197.66,0.03722677]
[1739297636413,0.03858683,197.69,197.66,5.09602677]
[1739297636612,0.03858683,197.69,197.66,0.03722677]
[1739297637812,5.0584,197.68,197.66,0.03722677]
[1739297638008,0.03858683,197.69,197.66,0.03722677]
[1739297638215,5.0587,197.67,197.66,0.03722677]
[1739297638814,0.03858683,197.69,197.66,0.03722677]
[1739297639417,0.03858683,197.69,197.66,5.09612677]
[1739297640319,0.03858683,197.69,197.66,0.03722677]
[1739297641617,5.0586,197.68,197.66,0.03722677]
[1739297642519,0.03858683,197.69,197.66,0.03722677]
[1739297643216,5.0587,197.67,197.66,0.03722677]
[1739297643619,0.03858683,197.69,197.66,0.03722677]
[1739297645722,5.09698683,197.69,197.66,0.03722677]
[1739297647124,0.03858683,197.69,197.66,0.03722677]
[1739297647626,0.03858683,197.69,197.67,5.0586]
[1739297648324,0.03858683,197.69,197.66,0.03722677]
[1739297648526,0.03858683,197.69,197.66,5.09602677]
[1739297650023,0.03858683,197.69,197.66,0.03722677]
[1739297652522,5.0586,197.68,197.66,0.03722677]
[1739297653723,5.0587,197.67,197.66,0.03722677]
[1739297654322,5.0599,197.63,197.56,3.1276]
[1739297655124,5.0597,197.64,197.56,3.1276]
[1739297655426,0.03439189,197.61,197.58,0.03766721]
[1739297655924,0.03439189,197.61,197.58,5.09856721]
[1739297656528,0.03439189,197.61,197.58,0.03766721]
[1739297657433,0.03439189,197.61,197.58,5.09836721]
[1739297658327,0.03439189,197.61,197.58,0.03766721]
[1739297658529,5.0607,197.59,197.58,0.03766721]
[1739297659028,5.0605,197.6,197.58,0.03766721]
[1739297659232,0.03439189,197.61,197.58,0.03766721]
[1739297662841,0.03439189,197.61,197.58,5.09836721]
[1739297663241,0.03439189,197.61,197.58,0.03766721]
[1739297663840,0.03439189,197.61,197.59,5.0607]
[1739297664142,0.03439189,197.61,197.58,0.03766721]
[1739297664939,0.03439189,197.61,197.6,5.0605]
[1739297665144,5.0589,197.67,197.58,13.85430921]
[1739297665443,5.0589,197.67,197.59,3.0032]
[1739297665637,5.0589,197.67,197.61,5.0601]
[1739297666238,0.03600376,197.66,197.62,0.03611261]
[1739297666444,0.03600376,197.66,197.63,5.0596]
[1739297667845,0.03600376,197.66,197.62,0.03611261]
[1739297668747,5.09500376,197.66,197.62,0.03611261]
[1739297668937,0.03600376,197.66,197.62,0.03611261]
[1739297669640,5.0593,197.65,197.62,0.03611261]
[1739297669942,0.03600376,197.66,197.62,0.03611261]
[1739297670344,0.03600376,197.66,197.63,5.0596]
[1739297672847,0.03600376,197.66,197.62,8.88121657]
[1739297673038,0.03600376,197.66,197.65,5.0592]
[1739297674845,0.03600376,197.66,197.64,3.8722]
[1739297675440,0.03600376,197.66,197.65,5.0592]
[1739297677150,5.0574,197.72,197.67,5.0585]
[1739297677351,5.0574,197.72,197.64,6.8938]
[1739297677552,5.0572,197.73,197.64,6.8938]
[1739297677851,3.0408,197.77,197.67,5.0585]
[1739297678452,0.03313047,197.74,197.7,0.0388063]
[1739297678653,5.0576,197.71,197.7,0.0388063]
[1739297679551,13.8155301,197.73,197.7,0.0388063]
[1739297679857,5.0574,197.72,197.7,0.0388063]
[1739297680460,0.03313047,197.74,197.7,0.0388063]
[1739297683958,0.03313047,197.74,197.71,5.0574]
[1739297684160,0.03313047,197.74,197.7,0.0388063]
[1739297686359,5.09003047,197.74,197.7,0.0388063]
[1739297688259,5.0576,197.71,197.7,0.0388063]
[1739297689862,5.0589,197.67,197.64,193.0]
[1739297690366,13.8155301,197.69,197.64,193.0]
[1739297690562,5.0589,197.67,197.64,193.0]
[1739297690765,13.8155301,197.69,197.57,13.8155301]
[1739297691058,0.03579223,197.65,197.61,0.03865339]
[1739297691856,0.03579223,197.65,197.61,5.09885339]
[1739297692864,0.03579223,197.65,197.61,0.03865339]
[1739297693464,5.09499223,197.65,197.61,0.03865339]
[1739297693767,0.03579223,197.65,197.61,0.03865339]
[1739297693963,0.03579223,197.65,197.61,5.09875339]
[1739297695167,0.03579223,197.65,197.61,0.03865339]
[1739297696368,5.0599,197.63,197.61,0.03865339]
[1739297697265,5.0599,197.62,197.61,0.03865339]
[1739297697770,13.91219412,197.62,197.61,0.03865339]
[1739297699565,5.0599,197.62,197.61,0.03865339]
[1739297700170,5.0597,197.63,197.61,0.03865339]
[1739297700565,13.83159269,197.64,197.61,0.03865339]
[1739297701069,5.0599,197.62,197.61,0.03865339]
[1739297701266,5.0599,197.62,197.51,13.83159269]
[1739297701468,13.83159269,197.61,197.5,3.0714]
[1739297702070,5.0613,197.57,197.51,5.0627]
[1739297702372,13.83159269,197.61,197.51,5.0627]
[1739297702563,5.0979221,197.56,197.52,0.03272001]
[1739297703364,0.0363221,197.56,197.52,0.03272001]
[1739297703766,5.0621,197.54,197.52,0.03272001]
[1739297704271,0.0363221,197.56,197.52,0.03272001]
[1739297706576,0.0363221,197.56,197.55,5.0617]
[1739297706876,0.0363221,197.56,197.53,6.1276]
[1739297707077,0.0363221,197.56,197.53,8.0554]
[1739297707576,5.0978221,197.56,197.52,0.03272001]
[1739297707769,0.0363221,197.56,197.52,0.03272001]
[1739297708375,13.83159269,197.55,197.52,0.03272001]
[1739297708568,13.83159269,197.55,197.42,195.9494]
[1739297708773,5.0641,197.46,197.4,5.0655]
[1739297708973,5.0641,197.46,197.39,28.19242634]
[1739297709777,0.03478686,197.44,197.41,0.0341858]
[1739297709972,5.09938686,197.44,197.41,0.0341858]
[1739297711471,5.0648,197.43,197.41,0.0341858]
[1739297711674,0.03478686,197.44,197.41,0.0341858]
[1739297712179,13.83159269,197.42,197.41,0.0341858]
[1739297712782,13.83159269,197.42,197.3,193.0]
[1739297712983,13.83159269,197.39,197.3,193.0]
[1739297713179,5.0669,197.35,197.25,28.19242634]
[1739297713381,13.83159269,197.32,197.25,28.19242634]
[1739297714079,0.0348212,197.3,197.27,0.03704687]
[1739297715684,0.0348212,197.3,197.29,5.0684]
[1739297716486,0.0348212,197.3,197.27,5.10584687]
[1739297716686,0.0348212,197.3,197.27,0.03704687]
[1739297716987,0.0348212,197.3,197.29,5.0684]
[1739297717187,0.0348212,197.3,197.27,0.03704687]